bitfinex/quotes_SOLUSD_20250724
["timestamp","ask_amount","ask_price","bid_price","bid_amount"]
[1753391437248,26.0,188.18,188.16,50.46202392]
[1753391437746,26.0,188.17,188.16,38.38]
[1753391437948,26.0,188.17,188.16,43.68002392]
[1753391438247,26.0,188.21,188.16,11.29464977]
[1753391438440,26.0,188.21,188.19,5.30002392]
[1753391439359,31.9632354,188.21,188.18,5.30002392]
[1753391439530,26.65,188.21,188.18,5.30002392]
[1753391439728,26.65,188.21,188.15,5.99488345]
[1753391439729,0.65,188.2,188.15,0.68]
[1753391440042,0.65,188.2,188.13,1.5318]
[1753391440230,0.5289606,188.19,188.12,0.68]
[1753391440429,26.0,188.17,188.14,5.30002392]
[1753391440649,26.65,188.17,188.14,5.30002392]
[1753391440956,26.0,188.13,188.1,0.68]
[1753391441263,26.0,188.13,188.12,5.30002392]
[1753391441462,26.0,188.12,188.11,0.68]
[1753391441757,26.0,188.12,188.11,5.98002392]
[1753391442355,6.88680176,188.13,188.11,5.99603848]
[1753391442536,6.88680176,188.13,188.12,5.30002392]
[1753391442733,6.88680176,188.13,188.12,5.98002392]
[1753391443137,6.88680176,188.13,188.12,8.70607223]
[1753391445052,6.88680176,188.13,188.12,9.38607223]
[1753391445355,32.88680176,188.13,188.12,9.38607223]
[1753391445585,32.88680176,188.13,188.12,14.70182813]
[1753391445739,6.88680176,188.13,188.12,14.98615127]
[1753391445937,6.88680176,188.13,188.12,53.30615127]
[1753391448470,6.88680176,188.13,188.12,47.70607223]
[1753391448773,6.88680176,188.13,188.12,53.02182813]
[1753391449474,6.88680176,188.13,188.12,52.34182813]
[1753391449774,6.88680176,188.13,188.08,8.70607223]
[1753391449775,26.0,188.1,188.08,8.70607223]
[1753391449976,26.0,188.1,188.08,47.02607223]
[1753391450355,26.65,188.1,188.08,47.02607223]
[1753391450603,26.65,188.1,188.08,38.32]
[1753391450969,26.65,188.1,188.08,47.02607223]
[1753391451168,26.0,188.09,188.08,38.32]
[1753391451354,26.65,188.09,188.08,38.32]
[1753391451669,26.65,188.09,188.04,6.6732]
[1753391451877,26.0,188.07,188.04,0.06]
[1753391452256,6.69102226,188.06,188.04,0.06]
[1753391452457,7.34102226,188.06,188.04,0.06]
[1753391452879,6.69102226,188.06,188.04,8.76607223]
[1753391453063,6.69102226,188.06,188.05,8.70607223]
[1753391453272,6.69102226,188.06,188.04,0.06]
[1753391453680,7.34102226,188.06,188.04,8.76607223]
[1753391453884,7.34102226,188.06,188.04,0.06]
[1753391454062,32.82031002,188.05,188.04,8.76607223]
[1753391455081,32.82031002,188.05,188.04,0.06]
[1753391457975,32.82031002,188.05,188.04,8.76607223]
[1753391458176,32.82031002,188.05,188.04,0.06]
[1753391459380,33.48031002,188.05,188.04,0.06]
[1753391459565,7.48031002,188.05,188.04,0.06]
[1753391460087,29.58272863,188.05,188.04,0.06]
[1753391460288,33.48031002,188.05,188.04,8.76607223]
[1753391460487,6.82031002,188.05,188.04,9.47607223]
[1753391460864,6.82031002,188.05,188.04,1.05432314]
[1753391461087,6.82031002,188.05,188.04,7.71622314]
[1753391461792,6.82031002,188.05,188.04,13.03424058]
[1753391462293,0.66,188.13,188.04,26.32928418]
[1753391462495,1.1889606,188.15,188.05,0.71]
[1753391462794,0.66,188.14,188.07,0.28432314]
[1753391463093,26.0,188.12,188.06,38.28]
[1753391463295,26.66,188.11,188.06,38.28]
[1753391463590,0.66,188.1,188.06,38.28]
[1753391463792,26.0,188.07,188.06,38.28]
[1753391463983,26.66,188.07,188.06,38.28]
[1753391464187,26.66,188.07,188.04,0.06]
[1753391464188,38.87979794,188.07,188.04,0.06]
[1753391464500,0.66,188.06,188.04,0.06]
[1753391464697,0.5289606,188.05,188.04,0.06]
[1753391465297,1.1889606,188.05,188.04,0.06]
[1753391465504,17.97364457,188.05,188.04,0.06]
[1753391465807,23.29137921,188.05,188.04,0.06]
[1753391467082,26.81676158,188.05,188.04,0.06]
[1753391469598,23.57570235,188.05,188.04,1e-08]
[1753391471689,26.34016952,188.05,188.04,1e-08]
[1753391472983,16.78468397,188.0,187.96,0.06]
[1753391473199,42.78468397,187.97,187.96,0.06]
[1753391473589,43.44468397,187.97,187.96,0.06]
[1753391474315,26.0,187.93,187.86,0.71]
[1753391474487,26.5289606,187.92,187.86,0.71]
[1753391474811,0.66,187.91,187.86,0.71]
[1753391475110,26.0,187.86,187.82,7.1424]
[1753391475403,26.0,187.86,187.82,11.7566116]
[1753391475599,26.5289606,187.92,187.82,11.7566116]
[1753391475907,26.5289606,187.92,187.83,0.85216157]
[1753391476314,0.5289606,187.94,187.83,0.99432314]
[1753391476485,0.5289606,187.96,187.84,1.38452954]
[1753391476689,16.78468397,187.99,187.88,0.14216157]
[1753391476995,26.0,187.96,187.89,6.03204325]
[1753391477195,26.0,187.96,187.9,0.71]
[1753391477496,26.5289606,187.96,187.9,0.71]
[1753391478114,1.1889606,187.96,187.9,0.71]
[1753391478287,0.5289606,187.95,187.9,0.71]
[1753391478799,1.1889606,187.95,187.9,0.71]
[1753391478999,26.0,187.96,187.91,0.71]
[1753391479197,26.5289606,187.96,187.92,0.71]
[1753391479696,26.5289606,187.96,187.9,5.32193437]
[1753391479697,27.1889606,187.96,187.9,6.03193437]
[1753391479900,26.0,187.96,187.91,0.71]
[1753391480098,26.0,187.96,187.91,6.03150043]
[1753391480294,26.0,187.94,187.92,0.71]
[1753391480688,32.5093044,187.96,187.9,0.71]
[1753391481908,26.0,187.94,187.9,0.71]
[1753391482410,26.0,187.94,187.91,0.71]
[1753391482598,26.0,187.94,187.88,5.3225463]
[1753391482599,26.5289606,187.96,187.92,0.71]
[1753391482805,26.0,187.96,187.92,0.71]
[1753391483296,26.0,187.97,187.89,0.28432314]
[1753391483496,26.0,187.97,187.93,0.71]
[1753391483807,26.0,187.97,187.94,0.71]
[1753391484917,0.5289606,187.99,187.94,5.32076124]
[1753391485111,0.5289606,188.01,187.95,0.71]
[1753391485520,26.0,188.0,187.95,0.71]
[1753391486016,26.66,187.99,187.93,12.20231778]
[1753391486411,26.0,187.99,187.94,0.71]
[1753391486715,0.5289606,188.01,187.94,0.71]
[1753391486905,26.0,187.99,187.94,0.71]
[1753391487107,0.66,187.98,187.93,11.49231778]
[1753391487309,26.66,187.98,187.93,11.49231778]
[1753391487512,26.0,187.98,187.94,0.68]
[1753391489425,5.31925405,188.0,187.94,0.68]
[1753391489720,6.56821465,188.0,187.94,6.00066581]
[1753391489914,1.2489606,188.0,187.94,6.00066581]
[1753391490420,0.5289606,188.0,187.94,5.32066581]
[1753391490627,0.72,187.99,187.89,0.68]
[1753391490813,0.5289606,187.98,187.89,0.68]
[1753391491014,0.72,187.97,187.89,0.68]
[1753391491318,26.0,187.93,187.89,6.00218424]
[1753391492609,26.5,187.92,187.89,6.00218424]
[1753391493110,26.0,187.92,187.89,6.00218424]
[1753391494825,0.72,187.95,187.89,0.68]
[1753391495004,26.72,187.91,187.84,0.68]
[1753391495319,26.72,187.91,187.85,0.68]
[1753391495662,0.72,187.91,187.85,0.68]
[1753391495819,1.2489606,187.91,187.85,0.68]
[1753391496499,27.2489606,187.91,187.85,0.68]
[1753391496897,26.0,187.9,187.85,0.68]
[1753391497409,26.0,187.9,187.86,0.68]
[1753391497596,1.2489606,187.94,187.88,6.5454]
[1753391497797,1.2489606,187.94,187.88,7.2254]
[1753391498015,26.0,187.91,187.88,6.5454]
[1753391498724,6.04117958,187.93,187.88,6.5454]
[1753391498931,26.0,187.9,187.88,6.5454]
[1753391500023,26.72,187.9,187.88,6.5454]
[1753391500901,0.72,187.9,187.88,6.5454]
[1753391501620,26.72,187.9,187.88,6.5454]
[1753391502705,0.5,187.89,187.88,6.5454]
[1753391503101,0.5,187.89,187.86,38.98]
[1753391504611,0.5,187.89,187.86,0.68]
[1753391504816,0.5,187.89,187.87,38.22]
[1753391505215,0.5,187.89,187.87,38.2]
[1753391505628,0.5,187.89,187.87,38.18]
[1753391505826,0.5,187.89,187.87,38.86]
[1753391506828,0.5,187.89,187.87,0.68]
[1753391507004,32.0414726,187.92,187.88,38.86]
[1753391507203,32.0414726,187.92,187.88,38.18]
[1753391507204,0.72,187.91,187.88,38.18]
[1753391507513,0.72,187.9,187.88,38.18]
[1753391507829,26.0,187.89,187.88,38.18]
[1753391508133,26.72,187.89,187.87,38.18]
[1753391508428,26.0,187.88,187.87,38.18]
[1753391509019,26.5,187.88,187.87,38.18]
[1753391510305,26.0,187.88,187.87,38.86]
[1753391510512,26.0,187.88,187.87,38.18]
[1753391511123,0.72,187.91,187.87,38.18]
[1753391511324,26.0,187.88,187.87,38.18]
[1753391512313,0.72,187.88,187.87,38.18]
[1753391513838,6.5715069,187.88,187.87,38.18]
[1753391514138,6.5425463,187.88,187.87,38.18]
[1753391514333,7.0715069,187.88,187.86,0.06]
[1753391514540,26.0,187.84,187.83,0.06]
[1753391514926,26.72,187.84,187.83,0.06]
[1753391515829,32.04367972,187.84,187.83,0.06]
[1753391516745,0.5289606,187.86,187.83,0.06]
[1753391516942,0.72,187.85,187.83,0.06]
[1753391517445,0.72,187.84,187.83,0.06]
[1753391517634,26.72,187.84,187.83,0.06]
[1753391517837,32.04367972,187.84,187.83,0.06]
[1753391519135,32.54367972,187.84,187.83,0.06]
[1753391519536,1.22,187.84,187.83,0.06]
[1753391519741,1.7489606,187.84,187.83,0.06]
[1753391520050,26.5,187.84,187.83,0.06]
[1753391521144,0.5,187.84,187.83,0.73]
[1753391521852,0.5,187.84,187.83,6.05396315]
[1753391522049,0.5,187.84,187.83,6.33828629]
[1753391522250,0.5289606,187.92,187.83,6.33828629]
[1753391522433,26.0,187.91,187.84,0.67]
[1753391522625,26.72,187.91,187.84,0.67]
[1753391523033,0.72,187.91,187.84,0.67]
[1753391523545,26.0,187.89,187.84,5.99340269]
[1753391523754,26.0,187.89,187.85,0.67]
[1753391524048,0.5,187.88,187.83,0.06]
[1753391524249,1.22,187.88,187.83,0.06]
[1753391524428,1.2489606,187.87,187.83,0.06]
[1753391524830,1.2489606,187.87,187.83,0.73]
[1753391525564,26.0,187.84,187.83,0.06]
[1753391526052,26.72,187.84,187.83,0.06]
[1753391527660,6.04367972,187.84,187.83,0.06]
[1753391529754,6.04367972,187.84,187.82,0.06]
[1753391529755,16.78468397,187.83,187.82,0.06]
[1753391530065,1.2489606,187.83,187.82,0.06]
[1753391531350,32.57292375,187.83,187.82,0.06]
[1753391540255,49.35760772,187.83,187.82,0.06]
[1753391544663,31.85292375,187.83,187.82,0.06]
[1753391545179,5.32288668,187.87,187.82,0.73]
[1753391545478,26.0,187.84,187.83,0.67]
[1753391546143,26.0,187.84,187.82,0.06]
[1753391546347,1.2489606,187.83,187.82,0.06]
[1753391547775,6.57292375,187.83,187.82,0.06]
[1753391547969,23.35760772,187.83,187.82,0.06]
[1753391548750,61.39760772,187.83,187.82,0.06]
[1753391549875,23.35760772,187.83,187.82,0.06]
[1753391550375,61.37760772,187.83,187.82,0.06]
[1753391551160,61.35760772,187.83,187.82,0.06]
[1753391551574,23.35760772,187.83,187.82,0.06]
[1753391551770,61.35760772,187.83,187.82,0.06]
[1753391553261,61.38760772,187.83,187.82,0.06]
[1753391555555,65.67260312,187.83,187.82,0.06]
[1753391555961,26.0,187.8,187.79,0.06]
[1753391556260,80.76468397,187.8,187.79,1e-08]
[1753391556579,81.95364457,187.8,187.79,1e-08]
[1753391557773,31.32481363,187.8,187.79,1e-08]
[1753391558052,69.32481363,187.8,187.79,1e-08]
[1753391558272,69.98481363,187.8,187.79,1e-08]
[1753391558883,69.32481363,187.8,187.79,1e-08]
[1753391559179,69.98481363,187.8,187.79,1e-08]
[1753391559763,69.32481363,187.8,187.79,1e-08]
[1753391560565,5.32478274,187.81,187.79,0.72000001]
[1753391560883,0.5289606,187.8,187.79,1e-08]
[1753391561384,0.5289606,187.8,187.79,0.72000001]
[1753391562180,32.51377423,187.8,187.79,1e-08]
[1753391562676,31.85377423,187.8,187.79,1e-08]
[1753391565879,32.51377423,187.8,187.79,1e-08]
[1753391566484,87.2584582,187.8,187.79,1e-08]
[1753391570185,49.2984582,187.8,187.79,1e-08]
[1753391570378,31.85377423,187.8,187.79,1e-08]
[1753391570568,43.81377423,187.8,187.79,1e-08]
[1753391574089,5.85377423,187.8,187.79,1e-08]
[1753391574389,0.5289606,187.8,187.79,0.72000001]
[1753391576096,31.85377423,187.8,187.79,0.72000001]
[1753391576296,31.85377423,187.8,187.79,1e-08]
[1753391579192,31.85377423,187.8,187.79,0.65000001]
[1753391579576,26.5289606,187.8,187.79,0.65000001]
[1753391579806,2.7769385,187.81,187.79,0.65000001]
[1753391579807,26.0,187.81,187.79,0.65000001]
[1753391580090,26.0,187.81,187.8,0.65]
[1753391581297,0.03,187.83,187.8,0.65]
[1753391581479,5.35400102,187.83,187.8,0.65]
[1753391581676,26.0,187.82,187.8,0.65]
[1753391582087,26.0,187.82,187.79,1e-08]
[1753391582286,26.0,187.82,187.81,0.65]
[1753391582485,0.03,187.83,187.81,0.65]
[1753391582683,0.03,187.83,187.79,5.32507767]
[1753391582684,0.03,187.83,187.82,0.65]
[1753391583201,26.0,187.8,187.79,1e-08]
[1753391583979,26.0,187.8,187.79,0.65000001]
[1753391584882,26.0,187.8,187.79,1e-08]
[1753391585597,5.32481363,187.8,187.79,1e-08]
[1753391587593,31.32481363,187.8,187.79,1e-08]
[1753391587899,5.85377423,187.8,187.79,1e-08]
[1753391588097,26.5289606,187.8,187.79,1e-08]
[1753391588298,26.0,187.81,187.79,0.65000001]
[1753391588684,26.0,187.8,187.79,1e-08]
[1753391589289,26.0,187.8,187.79,0.65000001]
[1753391590002,5.32466566,187.81,187.79,1e-08]
[1753391590193,6.52362626,187.81,187.79,1e-08]
[1753391590499,0.67,187.8,187.79,1e-08]
[1753391591793,5.85362626,187.81,187.79,1e-08]
[1753391591999,5.85362626,187.81,187.79,0.65000001]
[1753391592179,5.85362626,187.81,187.79,1e-08]
[1753391592803,6.52362626,187.81,187.79,1e-08]
[1753391593002,0.67,187.8,187.79,1e-08]
[1753391593909,5.99481363,187.8,187.79,1e-08]
[1753391594201,31.99481363,187.8,187.79,1e-08]
[1753391594902,31.32481363,187.8,187.79,1e-08]
[1753391596383,31.32481363,187.8,187.79,0.65000001]
[1753391596920,5.32455586,187.81,187.79,0.65000001]
[1753391597404,5.85351646,187.81,187.79,0.65000001]
[1753391598106,5.85351646,187.81,187.79,1e-08]
[1753391598287,0.5289606,187.8,187.79,1e-08]
[1753391599508,1.1989606,187.8,187.79,1e-08]
[1753391600005,26.0,187.81,187.79,0.65000001]
[1753391600757,26.5289606,187.81,187.79,0.65000001]
[1753391601017,31.85364139,187.81,187.79,1e-08]
[1753391603195,0.03,187.82,187.81,6.48652314]
[1753391603504,0.03,187.86,187.82,0.28432314]
[1753391603812,0.03,187.86,187.83,0.65]
[1753391604512,0.03,187.86,187.85,0.28432314]
[1753391604713,0.03,187.86,187.85,8.57526277]
[1753391604892,0.03,187.88,187.85,8.57526277]
[1753391605092,0.03,187.88,187.86,38.57]
[1753391605502,0.03,187.88,187.86,37.92]
[1753391605812,0.1,187.99,187.89,0.28432314]
[1753391606107,0.1,187.99,187.9,8.4732]
[1753391606312,0.1,187.99,187.91,0.65]
[1753391606514,26.0,187.97,187.92,38.18432314]
[1753391606907,26.0,187.97,187.93,0.65]
[1753391607109,0.1,187.99,187.93,0.65]
[1753391607409,5.41949215,187.99,187.93,0.65]
[1753391608110,26.0,187.98,187.93,0.65]
[1753391608413,5.32028091,187.96,187.93,0.65]
[1753391608711,31.32028091,187.96,187.92,37.9]
[1753391608909,31.32028091,187.96,187.92,38.57]
[1753391609294,31.32028091,187.96,187.92,37.9]
[1753391609616,26.0,187.93,187.92,38.57]
[1753391611908,31.3211302,187.93,187.92,37.9]
[1753391612111,5.3211302,187.93,187.92,37.9]
[1753391612898,5.3211302,187.93,187.84,16.78468397]
[1753391612899,5.9711302,187.93,187.87,0.67]
[1753391613106,5.8500908,187.93,187.88,0.67]
[1753391613313,5.8500908,187.93,187.89,0.67]
[1753391613700,26.0,187.9,187.87,37.86]
[1753391613899,26.0,187.9,187.87,38.53]
[1753391614120,26.0,187.9,187.87,37.86]
[1753391614297,26.0,187.9,187.88,0.67]
[1753391618794,26.0,187.9,187.87,37.86]
[1753391618795,31.32213559,187.9,187.87,37.86]
[1753391619018,0.65,187.89,187.87,37.86]
[1753391619408,0.65,187.89,187.85,6.4504]
[1753391619617,5.32213559,187.9,187.85,7.1204]
[1753391619808,6.50109619,187.9,187.85,7.1204]
[1753391620009,5.32213559,187.9,187.86,0.67]
[1753391620212,5.32213559,187.9,187.85,6.4504]
[1753391620416,5.32213559,187.9,187.87,0.67]
[1753391621023,5.32213559,187.9,187.85,7.1204]
[1753391621320,1.1789606,187.89,187.84,37.82]
[1753391621509,1.1789606,187.89,187.88,0.06]
[1753391621510,0.5289606,187.89,187.88,0.06]
[1753391622124,1.1789606,187.89,187.88,0.06]
[1753391622427,5.97226302,187.89,187.88,0.06]
[1753391623838,5.32226302,187.89,187.88,0.06]
[1753391624827,26.0,187.89,187.88,0.73]
[1753391625207,26.0,187.91,187.88,0.06]
[1753391625614,5.32148093,187.92,187.89,0.67]
[1753391626108,26.0,187.9,187.89,0.67]
[1753391629322,0.03,187.93,187.89,7.04362314]
[1753391629621,0.03,187.93,187.91,0.28432314]
[1753391630134,0.03,187.93,187.92,0.67]
[1753391630304,0.03,187.93,187.91,0.67]
[1753391630829,26.03,187.93,187.9,37.86]
[1753391631004,26.03,187.93,187.91,0.67]
[1753391632526,0.03,187.93,187.9,37.86]
[1753391632702,0.68,187.93,187.9,37.86]
[1753391634111,26.0,187.91,187.9,37.86]
[1753391635818,0.03,187.93,187.9,37.86]
[1753391636013,26.0,187.92,187.9,38.53]
[1753391637812,26.0,187.92,187.91,0.72]
[1753391638540,0.03,187.93,187.9,37.86]
[1753391638717,0.7,187.92,187.9,37.86]
[1753391639218,0.03,187.93,187.9,37.86]
[1753391639419,0.73,187.93,187.9,37.86]
[1753391640136,0.03,187.93,187.9,37.86]
[1753391640450,26.0,187.9,187.88,0.06]
[1753391642727,32.02142162,187.92,187.88,0.06]
[1753391642919,0.7,187.91,187.88,0.06]
[1753391643741,0.03,187.9,187.88,0.06]
[1753391644121,0.03,187.9,187.89,0.72]
[1753391645322,0.03,187.9,187.88,0.06]
[1753391645518,0.7,187.89,187.88,0.06]
[1753391646026,0.03,187.9,187.88,0.06]
[1753391647142,26.7,187.89,187.88,0.06]
[1753391648446,32.02226302,187.89,187.88,0.06]
[1753391652255,48.80694699,187.89,187.88,0.06]
[1753391658738,86.50694699,187.89,187.88,0.06]
[1753391662451,31.32226302,187.89,187.88,0.06]
[1753391662646,48.80694699,187.89,187.88,0.06]
[1753391664769,48.83694699,187.89,187.88,0.06]
[1753391665066,26.0,187.85,187.81,0.06]
[1753391665272,26.5289606,187.84,187.81,0.06]
[1753391665788,26.0,187.82,187.81,0.06]
[1753391665978,26.5289606,187.82,187.81,0.06]
[1753391666143,27.2289606,187.82,187.81,0.06]
[1753391667060,32.02424661,187.82,187.81,0.06]
[1753391667264,32.55320721,187.82,187.81,0.06]
[1753391669072,32.56320721,187.82,187.81,0.06]
[1753391671381,31.85320721,187.82,187.81,0.06]
[1753391672382,5.85295432,187.83,187.81,0.06]
[1753391678257,26.0,187.83,187.82,0.71]
[1753391682368,26.0,187.82,187.81,0.77]
[1753391684687,26.0,187.83,187.81,0.77]
[1753391684866,26.0,187.83,187.81,6.09441215]
[1753391685068,0.5289606,187.88,187.82,7.1108]
[1753391685272,26.03,187.89,187.83,0.85216157]
[1753391685273,0.03,187.89,187.83,0.85216157]
[1753391685475,0.03,187.89,187.83,0.99432314]
[1753391685989,0.03,187.88,187.84,1.52669111]
[1753391686188,0.03,187.88,187.85,8.5191]
[1753391686372,0.03,187.88,187.86,0.53231129]
[1753391686576,0.03,187.88,187.87,5.60715275]
[1753391686978,0.03,187.88,187.87,6.31715275]
[1753391688890,0.03,187.88,187.86,5.85537397]
[1753391689094,0.03,187.88,187.87,0.71]
[1753391689706,0.03,187.88,187.85,8.5191]
[1753391689876,0.03,187.88,187.85,6.9526]
[1753391690397,0.03,187.88,187.85,6.2426]
[1753391690592,0.03,187.88,187.86,0.71]
[1753391690898,0.03,187.88,187.87,5.32282961]
[1753391691284,0.03,187.88,187.87,6.03282961]
[1753391694206,0.03,187.88,187.81,2.15895301]
[1753391694376,0.03,187.88,187.84,0.71]
[1753391694901,0.03,187.88,187.85,0.71]
[1753391695104,26.03,187.88,187.85,0.71]
[1753391695276,26.03,187.88,187.85,6.03314545]
[1753391695477,0.03,187.88,187.86,0.71]
[1753391695677,0.03,187.88,187.85,5.32314545]
[1753391695877,0.03,187.88,187.87,0.71]
[1753391697909,26.03,187.88,187.85,0.67]
[1753391698209,26.03,187.88,187.85,38.35]
[1753391698589,26.0,187.87,187.85,37.68]
[1753391699886,26.75,187.88,187.85,43.00338062]
[1753391700089,26.03,187.88,187.85,43.00338062]
[1753391700405,0.03,187.88,187.86,0.67]
[1753391700583,0.03,187.88,187.87,5.32282961]
[1753391700977,0.03,187.88,187.87,5.99282961]
[1753391701909,0.03,187.88,187.87,6.27715275]
[1753391702135,1e-08,187.88,187.87,7.92545275]
[1753391704598,0.03,187.92,187.9,0.28432314]
[1753391704828,0.03,187.92,187.91,37.96432314]
[1753391705136,0.03,187.92,187.91,38.63432314]
[1753391706602,0.03,187.92,187.91,43.95601969]
[1753391706799,0.03,187.93,187.91,43.95601969]
[1753391707112,0.03,187.96,187.93,6.0511]
[1753391707316,0.03,187.96,187.94,0.5320847]
[1753391707518,0.03,187.96,187.95,38.00432314]
[1753391707906,0.03,187.96,187.95,38.67432314]
[1753391708934,0.03,187.96,187.95,43.99488711]
[1753391709733,0.1,187.99,187.96,17.06900711]
[1753391709920,0.1,187.99,187.98,0.28432314]
[1753391710126,0.1,187.99,187.98,0.95432314]
[1753391710801,0.1,187.99,187.98,38.08432314]
[1753391711003,0.1,187.99,187.98,44.074038]
[1753391714809,0.1,187.99,187.98,43.404038]
[1753391715009,0.1,187.99,187.98,37.94216157]
[1753391715311,0.1,187.99,187.98,38.08432314]
[1753391716227,26.0,187.98,187.95,5.32051685]
[1753391716432,26.72,187.98,187.96,37.78]
[1753391717328,0.72,187.97,187.91,7.0216]
[1753391717526,0.72,187.97,187.89,5.99226302]
[1753391717721,26.72,187.97,187.9,38.47]
[1753391717928,26.72,187.97,187.9,37.8]
[1753391718231,26.0,187.96,187.91,0.95432314]
[1753391718732,26.0,187.98,187.92,0.67]
[1753391718914,26.0,187.98,187.94,6.74172314]
[1753391719108,0.1,187.99,187.95,0.67]
[1753391719309,0.1,187.99,187.97,5.60405343]
[1753391719505,0.1,187.99,187.97,6.27405343]
[1753391720520,0.1,187.99,187.97,0.28432314]
[1753391720867,0.72,187.98,187.97,37.82]
[1753391723032,0.72,187.98,187.95,37.84]
[1753391723206,0.6289606,187.99,187.95,37.84]
[1753391723406,0.72,187.97,187.95,37.84]
[1753391723606,26.0,187.98,187.96,0.28432314]
[1753391724315,0.1,187.99,187.96,0.28432314]
[1753391724515,0.1,187.99,187.96,0.95432314]
[1753391724715,0.82,187.99,187.96,0.28432314]
[1753391724919,26.0,187.98,187.96,0.28432314]
[1753391725327,26.72,187.98,187.96,0.28432314]
[1753391725523,26.0,187.98,187.96,0.28432314]
[1753391725713,26.72,187.98,187.96,0.28432314]
[1753391725914,26.0,187.97,187.96,0.28432314]
[1753391726120,26.72,187.97,187.96,0.28432314]
[1753391726528,26.0,187.97,187.96,0.28432314]
[1753391726714,26.0,187.96,187.95,37.84]
[1753391727116,26.0,187.96,187.95,43.16056397]
[1753391727413,26.0,187.96,187.95,37.84]
[1753391730038,0.69,187.98,187.95,37.84]
[1753391730422,26.0,187.97,187.95,37.84]
[1753391732446,26.0,187.96,187.95,37.84]
[1753391734540,26.69,187.96,187.95,37.84]
[1753391736529,32.53924319,187.96,187.92,0.06]
[1753391736723,26.0,187.93,187.92,0.06]
[1753391737151,26.69,187.93,187.92,0.06]
[1753391737949,6.0111302,187.93,187.92,0.06]
[1753391738421,6.5400908,187.93,187.92,0.06]
[1753391739635,50.86647477,187.93,187.92,0.06]
[1753391739833,24.86647477,187.93,187.92,0.06]
[1753391740849,26.0,187.89,187.88,1.50067514]
[1753391741040,27.2189606,187.89,187.88,1.50067514]
[1753391741438,44.00364457,187.89,187.88,1.50067514]
[1753391741852,49.32590759,187.89,187.88,1.50067514]
[1753391742033,87.06590759,187.89,187.88,1.50067514]
[1753391742852,87.06590759,187.89,187.88,1e-08]
[1753391743054,94.78530759,187.89,187.88,1e-08]
[1753391745251,95.06963073,187.89,187.88,1e-08]
[1753391747661,99.32781078,187.89,187.88,1e-08]
[1753391749642,16.78468397,187.84,187.83,0.06]
[1753391749844,55.05364457,187.84,187.83,0.06]
[1753391750048,55.74364457,187.84,187.83,0.06]
[1753391750267,61.06732429,187.84,187.83,0.06]
[1753391754145,61.06732429,187.84,187.83,1e-08]
[1753391754347,65.42402664,187.84,187.83,1e-08]
[1753391756259,27.68402664,187.84,187.83,1e-08]
[1753391756559,65.40402664,187.84,187.83,1e-08]
[1753391762366,69.71754401,187.84,187.83,1e-08]
[1753391763159,65.40402664,187.84,187.83,1e-08]
[1753391766843,42.78468397,187.81,187.8,1e-08]
[1753391767080,81.03364457,187.81,187.8,1e-08]
[1753391767460,81.73364457,187.81,187.8,1e-08]
[1753391769468,16.78468397,187.78,187.77,0.2]